[Event "*** Titled Tuesday Blitz"]
[Site "Chess.com"]
[Date "2021.04.06"]
[Round "7"]
[White "GregShahade"]
[Black "DeTimmerman"]
[Result "1/2-1/2"]
[WhiteElo "2731"]
[BlackElo "2840"]
[TimeControl "180+1"]
[EndTime "11:19:40 PDT"]
[Termination "Game drawn by repetition"]

1. e4 {[%clk 0:03:00.9]} 1... e5 {[%clk 0:02:59.3]} 2. Nf3 {[%clk 0:03:01.1]}
2... Nc6 {[%clk 0:02:59]} 3. Bb5 {[%clk 0:03:01.2]} 3... f5 {[%clk 0:02:58.8]}
4. d3 {[%clk 0:03:00.5]} 4... fxe4 {[%clk 0:02:59]} 5. dxe4 {[%clk 0:03:01.4]}
5... Nf6 {[%clk 0:02:59.5]} 6. O-O {[%clk 0:02:58]} 6... d6 {[%clk 0:02:59.6]}
7. a3 {[%clk 0:02:58.1]} 7... Be7 {[%clk 0:02:59.4]} 8. Bc4 {[%clk 0:02:57.8]}
8... Bg4 {[%clk 0:02:58.9]} 9. Qd3 {[%clk 0:02:50]} 9... Qd7 {[%clk 0:02:52.6]}
10. h3 {[%clk 0:02:39.2]} 10... Be6 {[%clk 0:02:51.2]} 11. Nc3 {[%clk
0:02:29.3]} 11... h6 {[%clk 0:02:33]} 12. Nd5 {[%clk 0:02:21.6]} 12... O-O
{[%clk 0:02:32.3]} 13. Nxc7 {[%clk 0:02:14.6]} 13... Qxc7 {[%clk 0:02:26.6]} 14.
Bxe6+ {[%clk 0:02:14.5]} 14... Kh8 {[%clk 0:02:27.5]} 15. Nh4 {[%clk 0:02:09]}
15... Rfd8 {[%clk 0:02:03.1]} 16. Ng6+ {[%clk 0:01:48.2]} 16... Kh7 {[%clk
0:02:02.2]} 17. Bf5 {[%clk 0:01:48.9]} 17... Kg8 {[%clk 0:01:54]} 18. Qb3+
{[%clk 0:01:48.5]} 18... d5 {[%clk 0:01:51.4]} 19. exd5 {[%clk 0:01:47.2]} 19...
Rxd5 {[%clk 0:01:40.6]} 20. Be6+ {[%clk 0:01:35.1]} 20... Kh7 {[%clk 0:01:39.7]}
21. Nxe7 {[%clk 0:01:18.3]} 21... Nxe7 {[%clk 0:01:36.7]} 22. Bxd5 {[%clk
0:01:17.5]} 22... Nexd5 {[%clk 0:01:37.6]} 23. Be3 {[%clk 0:01:10.4]} 23... b5
{[%clk 0:01:35.3]} 24. Rad1 {[%clk 0:01:10.2]} 24... Qc6 {[%clk 0:01:31.4]} 25.
Rd2 {[%clk 0:01:02.7]} 25... a5 {[%clk 0:01:19.5]} 26. Rfd1 {[%clk 0:01:01.5]}
26... a4 {[%clk 0:01:20.1]} 27. Qd3+ {[%clk 0:01:00.3]} 27... e4 {[%clk
0:01:20.2]} 28. Qd4 {[%clk 0:00:53]} 28... Rc8 {[%clk 0:01:20.5]} 29. c3 {[%clk
0:00:52.4]} 29... Rc7 {[%clk 0:01:18.1]} 30. Qe5 {[%clk 0:00:47.7]} 30... Re7
{[%clk 0:01:17.1]} 31. Qg3 {[%clk 0:00:38.2]} 31... Qe6 {[%clk 0:01:15.1]} 32.
Rd4 {[%clk 0:00:32.8]} 32... Qf5 {[%clk 0:01:11]} 33. c4 {[%clk 0:00:28.6]}
33... bxc4 {[%clk 0:01:11.9]} 34. Rxc4 {[%clk 0:00:28.9]} 34... Re6 {[%clk
0:01:10.2]} 35. Rxa4 {[%clk 0:00:27.6]} 35... Nh5 {[%clk 0:01:06.9]} 36. Qg4
{[%clk 0:00:25.9]} 36... Nxe3 {[%clk 0:00:59.3]} 37. Qxf5+ {[%clk 0:00:14.9]}
37... Nxf5 {[%clk 0:01:00.2]} 38. g4 {[%clk 0:00:15.2]} 38... e3 {[%clk
0:00:54.3]} 39. gxf5 {[%clk 0:00:13.6]} 39... Re5 {[%clk 0:00:54.6]} 40. fxe3
{[%clk 0:00:12.9]} 40... Rxe3 {[%clk 0:00:55.4]} 41. Rg4 {[%clk 0:00:11.4]}
41... Nf6 {[%clk 0:00:51.9]} 42. Rg2 {[%clk 0:00:10.1]} 42... Rxh3 {[%clk
0:00:52]} 43. Ra1 {[%clk 0:00:10.2]} 43... Nd5 {[%clk 0:00:49.5]} 44. a4 {[%clk
0:00:10.5]} 44... Ne3 {[%clk 0:00:49.3]} 45. a5 {[%clk 0:00:09.8]} 45... Nxg2
{[%clk 0:00:47]} 46. Kxg2 {[%clk 0:00:10.7]} 46... Rb3 {[%clk 0:00:47.2]} 47. a6
{[%clk 0:00:10.8]} 47... Rxb2+ {[%clk 0:00:47]} 48. Kf3 {[%clk 0:00:10.2]} 48...
Rb8 {[%clk 0:00:47.9]} 49. a7 {[%clk 0:00:10.3]} 49... Ra8 {[%clk 0:00:48.1]}
50. Ke4 {[%clk 0:00:10.9]} 50... g6 {[%clk 0:00:37.9]} 51. f6 {[%clk 0:00:10.8]}
51... Kg8 {[%clk 0:00:37]} 52. Kd5 {[%clk 0:00:10.3]} 52... Kf7 {[%clk
0:00:36.6]} 53. Kc6 {[%clk 0:00:10.9]} 53... Kxf6 {[%clk 0:00:35.9]} 54. Kb7
{[%clk 0:00:10.8]} 54... Rxa7+ {[%clk 0:00:36.4]} 55. Kxa7 {[%clk 0:00:11.2]}
55... h5 {[%clk 0:00:34.2]} 56. Kb6 {[%clk 0:00:11.8]} 56... h4 {[%clk 0:00:33]}
57. Kc5 {[%clk 0:00:12.4]} 57... Ke5 {[%clk 0:00:32.3]} 58. Kc4 {[%clk
0:00:12.6]} 58... Ke4 {[%clk 0:00:29.5]} 59. Kc3 {[%clk 0:00:12.8]} 59... Ke3
{[%clk 0:00:21.9]} 60. Re1+ {[%clk 0:00:12.9]} 60... Kf2 {[%clk 0:00:19.1]} 61.
Kd2 {[%clk 0:00:13.5]} 61... h3 {[%clk 0:00:18.2]} 62. Re6 {[%clk 0:00:13.7]}
62... h2 {[%clk 0:00:17.7]} 63. Rf6+ {[%clk 0:00:14.1]} 63... Kg2 {[%clk
0:00:17]} 64. Rxg6+ {[%clk 0:00:14.6]} 64... Kf2 {[%clk 0:00:17.6]} 65. Rf6+
{[%clk 0:00:14.4]} 65... Kg2 {[%clk 0:00:18.1]} 66. Rg6+ {[%clk 0:00:14.8]}
66... Kf2 {[%clk 0:00:18.7]} 67. Rh6 {[%clk 0:00:15.3]} 67... Kg2 {[%clk
0:00:18.7]} 68. Ke2 {[%clk 0:00:15.1]} 68... h1=Q {[%clk 0:00:19.2]} 69. Rg6+
{[%clk 0:00:15.3]} 69... Kh2 {[%clk 0:00:19.6]} 70. Rh6+ {[%clk 0:00:08.6]}
70... Kg2 {[%clk 0:00:19.4]} 71. Rg6+ {[%clk 0:00:09]} 71... Kh3 {[%clk
0:00:16.6]} 72. Rh6+ {[%clk 0:00:08.5]} 72... Kg2 {[%clk 0:00:16]} 1/2-1/2

[Event "*** Titled Tuesday Blitz"]
[Site "Chess.com"]
[Date "2021.04.06"]
[Round "7"]
[White "DrVelja"]
[Black "GoltsevDmitry2000"]
[Result "0-1"]
[WhiteElo "2861"]
[BlackElo "2756"]
[TimeControl "180+1"]
[EndTime "11:19:41 PDT"]
[Termination "GoltsevDmitry2000 won by checkmate"]

1. e4 {[%clk 0:03:00.9]} 1... c5 {[%clk 0:02:39.5]} 2. Nf3 {[%clk 0:03:00.2]}
2... e6 {[%clk 0:02:38.7]} 3. d4 {[%clk 0:03:00.5]} 3... cxd4 {[%clk 0:02:30.7]}
4. Nxd4 {[%clk 0:03:01.4]} 4... a6 {[%clk 0:02:31]} 5. c4 {[%clk 0:03:01.6]}
5... Qc7 {[%clk 0:02:30.6]} 6. Nc3 {[%clk 0:03:01.7]} 6... Nc6 {[%clk
0:02:30.7]} 7. Be3 {[%clk 0:02:59.3]} 7... Nf6 {[%clk 0:02:30]} 8. Be2 {[%clk
0:02:59.4]} 8... Bb4 {[%clk 0:02:29]} 9. f3 {[%clk 0:02:59.2]} 9... h5 {[%clk
0:02:23.6]} 10. O-O {[%clk 0:02:56.9]} 10... Bd6 {[%clk 0:02:12.3]} 11. f4
{[%clk 0:02:53.9]} 11... Nxd4 {[%clk 0:02:11.1]} 12. Qxd4 {[%clk 0:02:53.1]}
12... e5 {[%clk 0:02:11.2]} 13. Qd2 {[%clk 0:02:51.9]} 13... exf4 {[%clk
0:02:05.8]} 14. Bxf4 {[%clk 0:02:52.8]} 14... Bxf4 {[%clk 0:02:04.2]} 15. Rxf4
{[%clk 0:02:53.7]} 15... d6 {[%clk 0:02:02.2]} 16. Rd1 {[%clk 0:02:36.9]} 16...
Qb6+ {[%clk 0:00:45.2]} 17. Kh1 {[%clk 0:02:36.3]} 17... Be6 {[%clk 0:00:43.8]}
18. Qxd6 {[%clk 0:02:13.5]} 18... Qxd6 {[%clk 0:00:44.7]} 19. Rxd6 {[%clk
0:02:13]} 19... Nd7 {[%clk 0:00:39.2]} 20. Kg1 {[%clk 0:02:10.6]} 20... h4
{[%clk 0:00:36.7]} 21. Nd5 {[%clk 0:01:56.8]} 21... O-O-O {[%clk 0:00:33.5]} 22.
Bg4 {[%clk 0:01:51.7]} 22... g5 {[%clk 0:00:31.4]} 23. Rxf7 {[%clk 0:01:20]}
23... Bxg4 {[%clk 0:00:29.3]} 24. c5 {[%clk 0:00:46.5]} 24... Rhf8 {[%clk
0:00:26.6]} 25. Rg7 {[%clk 0:00:41]} 25... Be2 {[%clk 0:00:26.4]} 26. h3 {[%clk
0:00:41.2]} 26... Bb5 {[%clk 0:00:21.9]} 27. b3 {[%clk 0:00:35.1]} 27... Rfe8
{[%clk 0:00:19.8]} 28. a4 {[%clk 0:00:25.9]} 28... Bc6 {[%clk 0:00:17.8]} 29.
Ne7+ {[%clk 0:00:18]} 29... Kc7 {[%clk 0:00:15.1]} 30. Nd5+ {[%clk 0:00:17.7]}
30... Bxd5 {[%clk 0:00:13.9]} 31. exd5 {[%clk 0:00:18.6]} 31... Re1+ {[%clk
0:00:10.8]} 32. Kh2 {[%clk 0:00:18.7]} 32... Rc1 {[%clk 0:00:09]} 33. b4 {[%clk
0:00:18.4]} 33... a5 {[%clk 0:00:08]} 34. Rb6 {[%clk 0:00:08.2]} 34... Kc8
{[%clk 0:00:05.4]} 35. Rb5 {[%clk 0:00:06]} 35... axb4 {[%clk 0:00:06]} 36. c6
{[%clk 0:00:06.5]} 36... bxc6 {[%clk 0:00:06.5]} 37. dxc6 {[%clk 0:00:07.4]}
37... Rxc6 {[%clk 0:00:07.1]} 38. Rgxg5 {[%clk 0:00:08.1]} 38... Rb6 {[%clk
0:00:06.7]} 39. Rg4 {[%clk 0:00:06]} 39... b3 {[%clk 0:00:05.2]} 40. Rgb4 {[%clk
0:00:05.2]} 40... Rxb5 {[%clk 0:00:05.2]} 41. axb5 {[%clk 0:00:06.1]} 41... Rh8
{[%clk 0:00:04.8]} 42. Rxb3 {[%clk 0:00:06.3]} 42... Kc7 {[%clk 0:00:05.3]} 43.
Rc3+ {[%clk 0:00:06.5]} 43... Kb6 {[%clk 0:00:05.9]} 44. g3 {[%clk 0:00:06.7]}
44... hxg3+ {[%clk 0:00:06]} 45. Kxg3 {[%clk 0:00:07.6]} 45... Kxb5 {[%clk
0:00:06.9]} 46. h4 {[%clk 0:00:08.2]} 46... Nf6 {[%clk 0:00:07.4]} 47. Rf3
{[%clk 0:00:07.3]} 47... Ne4+ {[%clk 0:00:07.6]} 48. Kg4 {[%clk 0:00:07.9]}
48... Kc5 {[%clk 0:00:07.6]} 49. Rd3 {[%clk 0:00:08.1]} 49... Nf2+ {[%clk
0:00:07.3]} 50. Kg5 {[%clk 0:00:08.8]} 50... Nxd3 {[%clk 0:00:08.1]} 51. Kg6
{[%clk 0:00:09.7]} 51... Ne5+ {[%clk 0:00:08.3]} 52. Kf6 {[%clk 0:00:08]} 52...
Nc4 {[%clk 0:00:07.3]} 53. Kg5 {[%clk 0:00:06.3]} 53... Kd5 {[%clk 0:00:07.6]}
54. h5 {[%clk 0:00:06.9]} 54... Ne5 {[%clk 0:00:07.7]} 55. h6 {[%clk 0:00:06.3]}
55... Ke6 {[%clk 0:00:07.6]} 56. Kh5 {[%clk 0:00:06]} 56... Nf7 {[%clk
0:00:07.6]} 57. h7 {[%clk 0:00:06.9]} 57... Rxh7+ {[%clk 0:00:07.7]} 58. Kg6
{[%clk 0:00:06]} 58... Rh1 {[%clk 0:00:07.9]} 59. Kg7 {[%clk 0:00:06.9]} 59...
Ne5 {[%clk 0:00:08.2]} 60. Kf8 {[%clk 0:00:07.8]} 60... Rg1 {[%clk 0:00:07.9]}
61. Ke8 {[%clk 0:00:07.6]} 61... Rg8# {[%clk 0:00:08]} 0-1

[Event "*** Titled Tuesday Blitz"]
[Site "Chess.com"]
[Date "2021.04.06"]
[Round "7"]
[White "jens1102"]
[Black "rquery98"]
[Result "0-1"]
[WhiteElo "2508"]
[BlackElo "2655"]
[TimeControl "180+1"]
[EndTime "11:19:42 PDT"]
[Termination "rquery98 won by resignation"]

1. d4 {[%clk 0:03:00.9]} 1... Nf6 {[%clk 0:02:59.5]} 2. Nf3 {[%clk 0:03:01.2]}
2... g6 {[%clk 0:02:58.9]} 3. b3 {[%clk 0:03:01.7]} 3... Bg7 {[%clk 0:02:58.3]}
4. e3 {[%clk 0:03:02.5]} 4... O-O {[%clk 0:02:59.1]} 5. Bb2 {[%clk 0:03:03.2]}
5... d6 {[%clk 0:02:59.9]} 6. Bd3 {[%clk 0:03:03.7]} 6... Nbd7 {[%clk
0:03:00.8]} 7. O-O {[%clk 0:03:04.5]} 7... e5 {[%clk 0:02:57.9]} 8. dxe5 {[%clk
0:03:03.8]} 8... dxe5 {[%clk 0:02:49.8]} 9. Nxe5 {[%clk 0:02:54.4]} 9... Nd5
{[%clk 0:02:40.6]} 10. Nc4 {[%clk 0:02:37.9]} 10... Bxb2 {[%clk 0:02:39.6]} 11.
Nxb2 {[%clk 0:02:38.8]} 11... Qf6 {[%clk 0:02:39.8]} 12. Qc1 {[%clk 0:02:35.5]}
12... Ne5 {[%clk 0:02:34.2]} 13. Be2 {[%clk 0:02:22.4]} 13... Bf5 {[%clk
0:02:32.9]} 14. c4 {[%clk 0:02:20.6]} 14... Bxb1 {[%clk 0:02:22]} 15. cxd5
{[%clk 0:02:19.5]} 15... Be4 {[%clk 0:02:16.9]} 16. f4 {[%clk 0:02:01.8]} 16...
Nd7 {[%clk 0:02:15.4]} 17. Bf3 {[%clk 0:02:01.8]} 17... Bxf3 {[%clk 0:02:03.8]}
18. Rxf3 {[%clk 0:02:02.7]} 18... Nb6 {[%clk 0:01:54.8]} 19. Qd2 {[%clk
0:01:57.1]} 19... Nxd5 {[%clk 0:01:51.5]} 20. Qxd5 {[%clk 0:01:56.6]} 20... Qxb2
{[%clk 0:01:48.6]} 21. Qd4 {[%clk 0:01:37.6]} 21... Qxd4 {[%clk 0:01:43.2]} 22.
exd4 {[%clk 0:01:38.5]} 22... Rad8 {[%clk 0:01:43.6]} 23. Rd1 {[%clk 0:01:36.2]}
23... Rd5 {[%clk 0:01:40.7]} 24. Rc3 {[%clk 0:01:36.4]} 24... c6 {[%clk
0:01:40.8]} 25. Rc5 {[%clk 0:01:36.6]} 25... Rfd8 {[%clk 0:01:39.5]} 26. Rc4
{[%clk 0:01:34.3]} 26... c5 {[%clk 0:01:30.3]} 27. Rdc1 {[%clk 0:01:30.5]} 27...
cxd4 {[%clk 0:01:22.3]} 28. Rc8 {[%clk 0:01:31.4]} 28... Rxc8 {[%clk 0:01:13.3]}
29. Rxc8+ {[%clk 0:01:32.3]} 29... Kg7 {[%clk 0:01:14.1]} 30. Kf2 {[%clk
0:01:31.5]} 30... d3 {[%clk 0:01:07.9]} 31. Ke1 {[%clk 0:01:31.6]} 31... b5
{[%clk 0:00:59.7]} 32. Kd2 {[%clk 0:01:28.1]} 32... b4 {[%clk 0:00:53.9]} 33.
Re8 {[%clk 0:01:27.5]} 33... Ra5 {[%clk 0:00:50.4]} 34. Kxd3 {[%clk 0:01:24.9]}
34... Rxa2 {[%clk 0:00:50.9]} 35. g3 {[%clk 0:00:46]} 35... Rxh2 {[%clk
0:00:51.1]} 36. Kc4 {[%clk 0:00:41.8]} 36... a5 {[%clk 0:00:44]} 37. Ra8 {[%clk
0:00:40.3]} 37... Rc2+ {[%clk 0:00:40.4]} 38. Kb5 {[%clk 0:00:38.7]} 38... Rc3
{[%clk 0:00:41.3]} 39. Ka4 {[%clk 0:00:37.1]} 39... Rxg3 {[%clk 0:00:39.5]} 40.
Rxa5 {[%clk 0:00:37.7]} 40... h5 {[%clk 0:00:39.3]} 41. Kxb4 {[%clk 0:00:33.9]}
41... h4 {[%clk 0:00:35.7]} 42. Ra2 {[%clk 0:00:31.6]} 42... Rg4 {[%clk
0:00:35.5]} 43. Rf2 {[%clk 0:00:29.2]} 43... g5 {[%clk 0:00:33.7]} 44. Kc5
{[%clk 0:00:23.6]} 44... Rxf4 {[%clk 0:00:30.6]} 45. Rh2 {[%clk 0:00:23.5]}
45... Kg6 {[%clk 0:00:23.3]} 46. b4 {[%clk 0:00:23.3]} 46... Re4 {[%clk
0:00:19.7]} 47. b5 {[%clk 0:00:23.5]} 47... Re8 {[%clk 0:00:20.1]} 48. Kc6
{[%clk 0:00:17.7]} 48... Kh5 {[%clk 0:00:17.7]} 49. Kc7 {[%clk 0:00:17.2]} 49...
f5 {[%clk 0:00:16.6]} 50. b6 {[%clk 0:00:16.2]} 50... g4 {[%clk 0:00:15.2]} 51.
Rd2 {[%clk 0:00:16.4]} 51... Re3 {[%clk 0:00:07.7]} 52. Rd5 {[%clk 0:00:11.4]}
52... Rc3+ {[%clk 0:00:06.7]} 53. Kd6 {[%clk 0:00:08.1]} 53... Rb3 {[%clk
0:00:06.1]} 54. Rxf5+ {[%clk 0:00:05.4]} 54... Kg6 {[%clk 0:00:06.6]} 55. Rf4
{[%clk 0:00:05.8]} 55... Kg5 {[%clk 0:00:05.9]} 56. Rf8 {[%clk 0:00:02.7]} 56...
Rxb6+ {[%clk 0:00:06.2]} 57. Ke5 {[%clk 0:00:03.4]} 57... Rb5+ {[%clk
0:00:06.4]} 58. Ke4 {[%clk 0:00:04]} 58... h3 {[%clk 0:00:06.3]} 59. Rg8+ {[%clk
0:00:04]} 59... Kh4 {[%clk 0:00:06.8]} 60. Kf4 {[%clk 0:00:04.7]} 60... Rb4+
{[%clk 0:00:06.7]} 61. Ke3 {[%clk 0:00:05.4]} 61... Kg3 {[%clk 0:00:06.8]} 62.
Rg7 {[%clk 0:00:05.9]} 62... Rb3+ {[%clk 0:00:07.1]} 63. Ke2 {[%clk 0:00:06.2]}
63... Rb2+ {[%clk 0:00:07.8]} 64. Kf1 {[%clk 0:00:06.3]} 64... h2 {[%clk
0:00:07.5]} 65. Rh7 {[%clk 0:00:06.6]} 65... Rb1+ {[%clk 0:00:08]} 66. Ke2
{[%clk 0:00:07.3]} 66... h1=Q {[%clk 0:00:08.9]} 67. Rxh1 {[%clk 0:00:07.7]}
67... Rxh1 {[%clk 0:00:09.7]} 68. Ke3 {[%clk 0:00:08.6]} 68... Rh3 {[%clk
0:00:10.5]} 69. Ke4 {[%clk 0:00:09.4]} 69... Kh2 {[%clk 0:00:11.4]} 0-1

[Event "*** Titled Tuesday Blitz"]
[Site "Chess.com"]
[Date "2021.04.06"]
[Round "7"]
[White "Chesswizard_2007"]
[Black "Chopper1905"]
[Result "1-0"]
[WhiteElo "2719"]
[BlackElo "2930"]
[TimeControl "180+1"]
[EndTime "11:19:45 PDT"]
[Termination "Chesswizard_2007 won on time"]

1. d4 {[%clk 0:03:00.9]} 1... Nf6 {[%clk 0:02:58.3]} 2. c4 {[%clk 0:02:59.6]}
2... e6 {[%clk 0:02:58.3]} 3. Nc3 {[%clk 0:02:56.6]} 3... d5 {[%clk 0:02:58.6]}
4. cxd5 {[%clk 0:02:56]} 4... exd5 {[%clk 0:02:59.5]} 5. Bg5 {[%clk 0:02:55.8]}
5... c6 {[%clk 0:02:59.9]} 6. e3 {[%clk 0:02:52.4]} 6... h6 {[%clk 0:02:59.6]}
7. Bh4 {[%clk 0:02:52.3]} 7... Bf5 {[%clk 0:03:00]} 8. Qf3 {[%clk 0:02:51]} 8...
Be6 {[%clk 0:03:00.3]} 9. Bxf6 {[%clk 0:02:49.7]} 9... Qxf6 {[%clk 0:03:01.2]}
10. Qxf6 {[%clk 0:02:49.4]} 10... gxf6 {[%clk 0:03:02.1]} 11. Bd3 {[%clk
0:02:49.3]} 11... a5 {[%clk 0:03:02.2]} 12. Nge2 {[%clk 0:02:47.4]} 12... Bd6
{[%clk 0:02:56]} 13. Kd2 {[%clk 0:02:43.5]} 13... Nd7 {[%clk 0:02:53.1]} 14. Nf4
{[%clk 0:02:43.2]} 14... a4 {[%clk 0:02:38.8]} 15. a3 {[%clk 0:02:41.6]} 15...
b5 {[%clk 0:02:36]} 16. Nce2 {[%clk 0:02:38.2]} 16... Nb6 {[%clk 0:02:34.6]} 17.
Nh5 {[%clk 0:02:31.4]} 17... Ke7 {[%clk 0:02:27.5]} 18. Neg3 {[%clk 0:02:30.2]}
18... Nc4+ {[%clk 0:02:27.6]} 19. Kc2 {[%clk 0:02:29.1]} 19... Rhb8 {[%clk
0:02:25.4]} 20. Ng7 {[%clk 0:02:23]} 20... Kd7 {[%clk 0:01:58.8]} 21. N7f5
{[%clk 0:02:17.8]} 21... Bf8 {[%clk 0:01:58.6]} 22. Nh5 {[%clk 0:02:13.5]} 22...
Bxf5 {[%clk 0:01:53.2]} 23. Bxf5+ {[%clk 0:02:14.4]} 23... Ke7 {[%clk
0:01:53.6]} 24. Rhb1 {[%clk 0:02:04.6]} 24... b4 {[%clk 0:01:45.2]} 25. Bd3
{[%clk 0:01:54.6]} 25... bxa3 {[%clk 0:01:20.4]} 26. bxa3 {[%clk 0:01:16.9]}
26... Rxb1 {[%clk 0:01:14.3]} 27. Kxb1 {[%clk 0:01:17.8]} 27... Rb8+ {[%clk
0:01:11.2]} 28. Kc1 {[%clk 0:01:16.7]} 28... Rb3 {[%clk 0:00:35.9]} 29. Bc2
{[%clk 0:01:01.8]} 29... Rc3 {[%clk 0:00:35.9]} 30. Kd1 {[%clk 0:01:00.5]} 30...
f5 {[%clk 0:00:30.2]} 31. Ng3 {[%clk 0:00:51.2]} 31... Kf6 {[%clk 0:00:22.8]}
32. Ne2 {[%clk 0:00:49.9]} 32... Rxa3 {[%clk 0:00:22.9]} 33. Rxa3 {[%clk
0:00:49.3]} 33... Bxa3 {[%clk 0:00:23.8]} 34. Nc3 {[%clk 0:00:44]} 34... Nb2+
{[%clk 0:00:20.7]} 35. Ke2 {[%clk 0:00:42.6]} 35... Bd6 {[%clk 0:00:15.8]} 36.
Nxa4 {[%clk 0:00:42.7]} 36... Nc4 {[%clk 0:00:13.7]} 37. Bd3 {[%clk 0:00:40.1]}
37... Na5 {[%clk 0:00:11]} 38. g3 {[%clk 0:00:39.6]} 38... Nb3 {[%clk
0:00:08.9]} 39. Bc2 {[%clk 0:00:38]} 39... Nc1+ {[%clk 0:00:09.1]} 40. Kd1
{[%clk 0:00:34.1]} 40... Na2 {[%clk 0:00:09.1]} 41. Bb3 {[%clk 0:00:34.7]} 41...
Nb4 {[%clk 0:00:09.2]} 42. Ke2 {[%clk 0:00:33.8]} 42... Kg5 {[%clk 0:00:09.5]}
43. Nb2 {[%clk 0:00:32.7]} 43... Kg4 {[%clk 0:00:08.6]} 44. h4 {[%clk
0:00:31.8]} 44... Be7 {[%clk 0:00:02.7]} 45. Ba4 {[%clk 0:00:31.4]} 45... Bd6
{[%clk 0:00:02.8]} 46. Nd1 {[%clk 0:00:31.1]} 46... f6 {[%clk 0:00:01.8]} 47.
Nb2 {[%clk 0:00:29.9]} 47... Kh3 {[%clk 0:00:02.1]} 48. Nd3 {[%clk 0:00:29.4]}
48... Nxd3 {[%clk 0:00:02.3]} 49. Kxd3 {[%clk 0:00:30.3]} 49... Kg2 {[%clk
0:00:03.2]} 50. Ke2 {[%clk 0:00:27.5]} 50... c5 {[%clk 0:00:03.7]} 51. Bc6
{[%clk 0:00:22.1]} 51... c4 {[%clk 0:00:02.3]} 52. Bxd5+ {[%clk 0:00:22.5]}
52... Kg1 {[%clk 0:00:01.5]} 53. Bxc4 {[%clk 0:00:23.4]} 53... f4 {[%clk
0:00:01.4]} 54. exf4 {[%clk 0:00:19.2]} 54... Kg2 {[%clk 0:00:02.3]} 55. Bd5+
{[%clk 0:00:19]} 55... Kh3 {[%clk 0:00:02.6]} 56. Kf3 {[%clk 0:00:19.1]} 56...
Bb4 {[%clk 0:00:02.4]} 57. Be6+ {[%clk 0:00:19.5]} 57... Kh2 {[%clk 0:00:02.8]}
58. d5 {[%clk 0:00:19.7]} 58... Bc5 {[%clk 0:00:02.6]} 59. h5 {[%clk 0:00:18.1]}
59... Kg1 {[%clk 0:00:02.6]} 60. Ke4 {[%clk 0:00:16.6]} 60... Kxf2 {[%clk
0:00:02.6]} 61. g4 {[%clk 0:00:16.6]} 61... Kg3 {[%clk 0:00:03]} 62. Kf5 {[%clk
0:00:17.2]} 62... Bd6 {[%clk 0:00:02.5]} 63. g5 {[%clk 0:00:14]} 63... fxg5
{[%clk 0:00:01.8]} 64. fxg5 {[%clk 0:00:14.9]} 64... hxg5 {[%clk 0:00:02.3]} 65.
h6 {[%clk 0:00:14.1]} 1-0

[Event "*** Titled Tuesday Blitz"]
[Site "Chess.com"]
[Date "2021.04.06"]
[Round "7"]
[White "ShapkinAnatoliy"]
[Black "ViktoriyaTarasova"]
[Result "1-0"]
[WhiteElo "2658"]
[BlackElo "2443"]
[TimeControl "180+1"]
[EndTime "11:19:47 PDT"]
[Termination "ShapkinAnatoliy won by resignation"]

1. d4 {[%clk 0:03:00.9]} 1... Nf6 {[%clk 0:02:59.6]} 2. c4 {[%clk 0:03:00.1]}
2... e6 {[%clk 0:02:59.9]} 3. g3 {[%clk 0:02:58.6]} 3... d5 {[%clk 0:02:58]} 4.
Nf3 {[%clk 0:02:58.9]} 4... Bb4+ {[%clk 0:02:57.9]} 5. Bd2 {[%clk 0:02:58.6]}
5... Be7 {[%clk 0:02:56.9]} 6. Bg2 {[%clk 0:02:59]} 6... Nbd7 {[%clk 0:02:55.6]}
7. O-O {[%clk 0:02:59.9]} 7... O-O {[%clk 0:02:55.8]} 8. Qc2 {[%clk 0:03:00]}
8... c6 {[%clk 0:02:55.5]} 9. Bf4 {[%clk 0:03:00.5]} 9... Nh5 {[%clk 0:02:54.3]}
10. Bc1 {[%clk 0:02:59.5]} 10... Nhf6 {[%clk 0:02:51.2]} 11. Nbd2 {[%clk
0:02:59.9]} 11... b6 {[%clk 0:02:48.6]} 12. e4 {[%clk 0:03:00.4]} 12... dxe4
{[%clk 0:02:44.6]} 13. Nxe4 {[%clk 0:03:01.3]} 13... Nxe4 {[%clk 0:02:39]} 14.
Qxe4 {[%clk 0:03:02.2]} 14... Bb7 {[%clk 0:02:39.2]} 15. Bf4 {[%clk 0:03:02.7]}
15... Nf6 {[%clk 0:02:38.4]} 16. Qe2 {[%clk 0:03:02.5]} 16... c5 {[%clk
0:02:21]} 17. Rad1 {[%clk 0:02:54.7]} 17... cxd4 {[%clk 0:02:15.5]} 18. Rxd4
{[%clk 0:02:45.7]} 18... Qc8 {[%clk 0:02:14]} 19. Ne5 {[%clk 0:02:38.2]} 19...
Bxg2 {[%clk 0:02:11.5]} 20. Kxg2 {[%clk 0:02:39.1]} 20... Bc5 {[%clk 0:02:09.2]}
21. Rd3 {[%clk 0:02:37]} 21... Qb7+ {[%clk 0:02:07.7]} 22. Qf3 {[%clk 0:02:36]}
22... Qxf3+ {[%clk 0:01:54.7]} 23. Kxf3 {[%clk 0:02:36.9]} 23... h6 {[%clk
0:01:34.8]} 24. h4 {[%clk 0:02:33.6]} 24... Rac8 {[%clk 0:01:31.4]} 25. Rfd1
{[%clk 0:02:33.6]} 25... Rfe8 {[%clk 0:01:16.1]} 26. b3 {[%clk 0:02:33.3]} 26...
Be7 {[%clk 0:01:08.7]} 27. Nd7 {[%clk 0:02:22.7]} 27... Nh7 {[%clk 0:00:56.1]}
28. h5 {[%clk 0:02:13.3]} 28... Red8 {[%clk 0:00:40.8]} 29. Ne5 {[%clk
0:02:11.1]} 29... Rxd3+ {[%clk 0:00:40.3]} 30. Rxd3 {[%clk 0:02:09.4]} 30... Nf6
{[%clk 0:00:39.5]} 31. g4 {[%clk 0:02:05.9]} 31... Kf8 {[%clk 0:00:39.1]} 32.
Ke2 {[%clk 0:01:15.5]} 32... Ke8 {[%clk 0:00:38.5]} 33. f3 {[%clk 0:01:15.7]}
33... Bc5 {[%clk 0:00:35.3]} 34. Bd2 {[%clk 0:01:01.3]} 34... Ke7 {[%clk
0:00:32.4]} 35. b4 {[%clk 0:01:01.2]} 35... Bd6 {[%clk 0:00:32]} 36. Nxf7 {[%clk
0:00:58.4]} 36... Bxb4 {[%clk 0:00:27.8]} 37. Ne5 {[%clk 0:00:40.5]} 37... Bd6
{[%clk 0:00:26.9]} 38. Ng6+ {[%clk 0:00:39.3]} 38... Kd7 {[%clk 0:00:25]} 39.
Bf4 {[%clk 0:00:37.2]} 39... Ne8 {[%clk 0:00:21.8]} 40. Bg3 {[%clk 0:00:15.5]}
40... Kc7 {[%clk 0:00:19.5]} 41. Bxd6+ {[%clk 0:00:08.3]} 41... Nxd6 {[%clk
0:00:19.6]} 42. Ne5 {[%clk 0:00:08.3]} 42... Rf8 {[%clk 0:00:15.6]} 43. Ke3
{[%clk 0:00:08.6]} 43... Re8 {[%clk 0:00:15.1]} 44. f4 {[%clk 0:00:08.9]} 44...
Re7 {[%clk 0:00:14]} 45. a4 {[%clk 0:00:07.7]} 45... Nb7 {[%clk 0:00:13.7]} 46.
Rd1 {[%clk 0:00:06.2]} 46... Nc5 {[%clk 0:00:13.7]} 47. g5 {[%clk 0:00:05]}
47... Re8 {[%clk 0:00:12.6]} 48. gxh6 {[%clk 0:00:04.3]} 48... gxh6 {[%clk
0:00:13.4]} 49. Rg1 {[%clk 0:00:05]} 49... Nxa4 {[%clk 0:00:12.6]} 50. Rg7+
{[%clk 0:00:05.2]} 50... Kd6 {[%clk 0:00:10.6]} 51. Kd4 {[%clk 0:00:05.3]} 51...
Rd8 {[%clk 0:00:08.5]} 52. Nf7+ {[%clk 0:00:05.5]} 52... Ke7+ {[%clk 0:00:08.7]}
53. Nxd8+ {[%clk 0:00:06.4]} 53... Kxd8 {[%clk 0:00:09.4]} 54. Rxa7 {[%clk
0:00:06.9]} 54... Nc5 {[%clk 0:00:09.2]} 55. Rh7 {[%clk 0:00:07.8]} 55... Nb3+
{[%clk 0:00:09.8]} 56. Ke5 {[%clk 0:00:07.9]} 56... Nd2 {[%clk 0:00:09.5]} 57.
Kd6 {[%clk 0:00:07.9]} 57... Nxc4+ {[%clk 0:00:10.2]} 58. Kxe6 {[%clk
0:00:08.5]} 58... b5 {[%clk 0:00:09.3]} 59. Rxh6 {[%clk 0:00:09.1]} 59... b4
{[%clk 0:00:08.9]} 60. Rh8+ {[%clk 0:00:09.6]} 60... Kc7 {[%clk 0:00:08.6]} 61.
Rg8 {[%clk 0:00:09.7]} 61... b3 {[%clk 0:00:08.5]} 62. h6 {[%clk 0:00:09.3]}
62... b2 {[%clk 0:00:08.8]} 63. Rg1 {[%clk 0:00:09]} 63... Ne5 {[%clk
0:00:06.2]} 64. Kxe5 {[%clk 0:00:08.8]} 1-0